fUST/lending_fUST_20250328
["ID","MTS","AMOUNT","RATE_DAILY","PERIOD"]
[356748622,1743094243904,-151.0,0.00033,14]
[356748623,1743094243914,-151.0,0.00033,14]
[356748624,1743094243924,-151.0,0.00033,14]
[356748625,1743094243935,-151.0,0.00033,14]
[356748627,1743094243945,-151.0,0.00033,14]
[356748628,1743094243955,-151.0,0.00033,14]
[356748629,1743094243965,-432.869733,0.00033,14]
[356748630,1743094243975,-432.869733,0.00033,14]
[356748631,1743094243987,-606.14092,0.00033,14]
[356748632,1743094243998,-151.0,0.00033,14]
[356748633,1743094244008,-151.0,0.00033,14]
[356748634,1743094244018,-151.0,0.00033,14]
[356748635,1743094244028,-465.424386,0.00033,14]
[356748636,1743094244040,-465.424386,0.00033,14]
[356748637,1743094244050,-1940.777583,0.00033,14]
[356748638,1743094244060,-1940.777583,0.00033,14]
[356748639,1743094244070,-151.0,0.00033,14]
[356748640,1743094244080,-151.0,0.00033,14]
[356748641,1743094244089,-151.0,0.00033,14]
[356748642,1743094244099,-151.0,0.00033,14]
[356748643,1743094244108,-151.0,0.00033,14]
[356748644,1743094244118,-151.0,0.00033,14]
[356748645,1743094244128,-282.297288,0.00033,14]
[356748646,1743094244139,-282.297288,0.00033,14]
[356748647,1743094244149,-485.934946,0.00033,2]
[356748648,1743094244159,-151.0,0.00033,14]
[356748649,1743094244168,-485.934946,0.00033,2]
[356748650,1743094244177,-151.0,0.00033,14]
[356748651,1743094244187,-297.0,0.00033,2]
[356748652,1743094244197,-151.198525,0.00033,14]
[356748653,1743094244207,-151.198525,0.00033,14]
[356748654,1743094244216,-151.0,0.00033,14]
[356748655,1743094244226,-281.303414,0.00033,14]
[356748656,1743094244238,-226.42368,0.00033,14]
[356748657,1743094244248,-226.42368,0.00033,14]
[356748658,1743094244258,-720.657778,0.00033,14]
[356748659,1743094244268,-720.657778,0.00033,14]
[356748660,1743094244278,-151.0,0.00033,14]
[356748661,1743094244288,-350.0,0.00033068,5]
[356748662,1743094244299,-770.06730268,0.00033141,11]
[356748663,1743094244311,-450.0,0.00033616,5]
[356748664,1743094244320,-770.06730268,0.00033659,11]
[356748665,1743094244330,-200.0,0.00033791,5]
[356748666,1743094244340,-1500.0,0.00033796,5]
[356748667,1743094244351,-1832.15908155,0.00033903,3]
[356748668,1743094244361,-300.0,0.00034,120]
[356748669,1743094244371,-494.271699,0.000341,17]
[356748670,1743094244380,-464.55456853,0.00034157,2]
[356748671,1743094244392,-550.0,0.00034164,5]
[356748672,1743094244402,-770.06730268,0.00034176,11]
[356748673,1743094244411,-163.56932785,0.00034318,10]
[356748674,1743094244421,-652.7802,0.00034647,30]
[356748675,1743094244430,-770.06730268,0.00034693,12]
[356748676,1743094244440,-250.05864206,0.00034712,5]
[356748677,1743094244450,-400.0,0.00034832,2]
[356748678,1743094244459,-195.18,0.00034882,3]
[356748679,1743094244469,-2000.0,0.00034892,5]
[356748680,1743094244481,-160.0,0.00034957,3]
[356748681,1743094244491,-308.0,0.00035,120]
[356748682,1743094244500,-302.28,0.00035,30]
[356748683,1743094244510,-1000.0,0.00035,120]
[356748684,1743094244520,-500.0,0.00035,2]
[356748685,1743094244530,-200.0,0.000351,120]
[356748686,1743094244540,-200.0,0.000351,120]
[356748687,1743094244550,-200.0,0.000351,120]
[356748688,1743094244559,-770.06730268,0.0003521,12]
[356748689,1743094244569,-500.0,0.00035452,5]
[356748690,1743094244578,-1000.0,0.00035452,5]
[356748691,1743094244588,-1000.0,0.00035452,5]
[356748692,1743094244597,-1000.0,0.00035452,5]
[356748693,1743094244607,-150.0,0.0003551,14]
[356748694,1743094244616,-150.0,0.0003551,14]
[356748695,1743094244626,-1000.0,0.00035616,120]
[356748696,1743094244636,-281.51233359,0.00035616,7]
[356748697,1743094244645,-150.0,0.00035616,5]
[356748698,1743094244655,-770.06730268,0.00035728,12]
[356748699,1743094244665,-1000.0,0.00035871,6]
[356748700,1743094244675,-500.0,0.0003589,2]
[356748701,1743094244684,-2500.0,0.00035988,5]
[356748702,1743094244694,-300.0,0.00036,120]
[356748703,1743094244703,-1140.5014602,0.00036,120]
[356748704,1743094244713,-250000.0,0.00036,30]
[356748705,1743094244722,-174.042589,0.00036,14]
[356748706,1743094244732,-174.042589,0.00036,14]
[356748707,1743094244742,-151.0,0.00036,14]
[356748708,1743094244751,-206.923113,0.00036,14]
[356748709,1743094244761,-151.0,0.00036,14]
[356748710,1743094244770,-151.0,0.00036,14]
[356748711,1743094244779,-151.0,0.00036,14]
[356748712,1743094244789,-151.0,0.00036,14]
[356748713,1743094244799,-151.0,0.00036,14]
[356748714,1743094244809,-151.0,0.00036,14]
[356748715,1743094244819,-432.869733,0.00036,14]
[356748716,1743094244828,-432.869733,0.00036,14]
[356748717,1743094244838,-606.14092,0.00036,14]
[356748718,1743094244848,-151.0,0.00036,14]
[356748719,1743094244858,-151.0,0.00036,14]
[356748720,1743094244868,-151.0,0.00036,14]
[356748721,1743094244878,-465.424386,0.00036,14]
[356748722,1743094244887,-465.424386,0.00036,14]
[356748723,1743094244897,-1940.777583,0.00036,14]
[356748724,1743094244906,-1940.777583,0.00036,14]
[356748725,1743094244915,-151.0,0.00036,14]
[356748726,1743094244925,-151.0,0.00036,14]
[356748727,1743094244934,-151.0,0.00036,14]
[356748728,1743094244943,-151.0,0.00036,14]
[356748729,1743094244970,-151.0,0.00036,14]
[356748730,1743094244979,-282.297288,0.00036,14]
[356748731,1743094244989,-282.297288,0.00036,14]
[356748732,1743094245000,-485.934946,0.00036,2]
[356748733,1743094245009,-151.0,0.00036,14]
[356748734,1743094245018,-485.934946,0.00036,2]
[356748735,1743094245027,-151.0,0.00036,14]
[356748736,1743094245037,-297.0,0.00036,2]
[356748737,1743094245047,-151.198525,0.00036,14]
[356748738,1743094245056,-151.198525,0.00036,14]
[356748739,1743094245065,-234.58465,0.00036,14]
[356748740,1743094245075,-226.42368,0.00036,14]
[356748741,1743094245085,-226.42368,0.00036,14]
[356748742,1743094245094,-720.657778,0.00036,14]
[356748743,1743094245103,-720.657778,0.00036,14]
[356748744,1743094245113,-151.0,0.00036,14]
[356748745,1743094245122,-464.55456853,0.00036071,2]
[356748746,1743094245131,-4462.14533541,0.000362,98]
[356748747,1743094245141,-4462.14533538,0.000362,98]
[356748748,1743094245151,-4462.14533538,0.000362,98]
[356748749,1743094245160,-4462.14533538,0.00036221,98]
[356748750,1743094245170,-770.06730268,0.00036245,13]
[356748751,1743094245179,-160.0,0.00036654,4]
[356748752,1743094245188,-770.06730268,0.00036762,13]
[356748753,1743094245198,-1000.0,0.00037,120]
[356748754,1743094245207,-33387.14984071,0.00037,120]
[356748755,1743094245217,-3000.0,0.00037084,5]
[356748756,1743094245226,-200.0,0.000371,120]
[356748757,1743094245237,-200.0,0.000371,120]
[356748758,1743094245246,-200.0,0.000371,120]
[356748759,1743094245255,-770.06730268,0.00037279,13]
[356748760,1743094245265,-1000.0,0.00037452,5]
[356748761,1743094245274,-1000.0,0.00037452,5]
[356748762,1743094245283,-1000.0,0.00037452,5]
[356748763,1743094245292,-1000.0,0.00037452,5]
[356748764,1743094245301,-770.06730268,0.00037797,14]
[356748765,1743094245313,-375.535,0.00037832,2]
[356748766,1743094245323,-678.09,0.00037926,30]
[356748767,1743094245332,-300.0,0.00038,120]
[356748768,1743094245343,-500.0,0.00038108,7]
[356748769,1743094245352,-3500.0,0.0003818,5]
[356748770,1743094245361,-770.06730268,0.00038314,14]
[356748771,1743094245371,-160.0,0.00038351,5]
[356748772,1743094245381,-1000.0,0.00038356,120]
[356748773,1743094245561,-703.59589536,0.00038356,60]
[356748774,1743094245572,-350.64221324,0.00038356,5]
[356748775,1743094245582,-222.76075387,0.00038356,2]
[356748776,1743094245591,-500.0,0.00038536,7]
[356748777,1743094245601,-1000.0,0.000388,60]
[356748778,1743094245611,-3000.0,0.000388,30]
[356748779,1743094245620,-770.06730268,0.00038831,14]
[356748780,1743094245630,-300.0,0.00039,120]
[356748781,1743094245639,-201.0,0.00039,2]
[356748782,1743094245649,-17580.54666646,0.00039,120]
[356748783,1743094245659,-1000.0,0.00039,120]
[356748784,1743094245669,-73218.42356136,0.00039,10]
[356748785,1743094245678,-14194.0,0.00039,30]
[356748786,1743094245688,-950.20212768,0.00039,7]
[356748787,1743094245698,-1350.41760579,0.00039,120]
[356748788,1743094245707,-174.042589,0.00039,14]
[356748789,1743094245716,-174.042589,0.00039,14]
[356748790,1743094245726,-151.0,0.00039,14]
[356748791,1743094245736,-206.923113,0.00039,14]
[356748792,1743094245745,-151.0,0.00039,14]
[356748793,1743094245754,-151.0,0.00039,14]
[356748794,1743094245763,-151.0,0.00039,14]
[356748795,1743094245773,-151.0,0.00039,14]
[356748796,1743094245782,-432.869733,0.00039,14]
[356748797,1743094245791,-432.869733,0.00039,14]
[356748798,1743094245800,-606.14092,0.00039,14]
[356748799,1743094245810,-420.04,0.00039,28]
[356748800,1743094245820,-151.0,0.00039,14]
[356748801,1743094245830,-227.092377,0.00039,14]
[356748802,1743094245839,-151.0,0.00039,14]
[356748803,1743094245849,-465.424386,0.00039,14]
[356748804,1743094245858,-465.424386,0.00039,14]
[356748805,1743094245867,-1940.777583,0.00039,14]
[356748806,1743094245876,-1940.777583,0.00039,14]
[356748807,1743094245885,-151.0,0.00039,14]
[356748808,1743094245894,-297.974348,0.00039,14]
[356748809,1743094245904,-151.0,0.00039,14]
[356748810,1743094245914,-151.0,0.00039,14]
[356748811,1743094245923,-151.0,0.00039,14]
[356748812,1743094245933,-282.297288,0.00039,14]
[356748813,1743094245942,-282.297288,0.00039,14]
[356748814,1743094245952,-485.934946,0.00039,2]
[356748815,1743094245962,-151.0,0.00039,14]
[356748816,1743094245973,-485.934946,0.00039,2]
[356748817,1743094245984,-238.572219,0.00039,14]
[356748818,1743094245994,-151.198525,0.00039,14]
[356748819,1743094246003,-151.198525,0.00039,14]
[356748820,1743094246013,-226.42368,0.00039,14]
[356748821,1743094246023,-226.42368,0.00039,14]
[356748822,1743094246032,-720.657778,0.00039,14]
[356748823,1743094246042,-720.657778,0.00039,14]
[356748824,1743094246051,-151.0,0.00039,14]
[356748825,1743094246060,-200.0,0.000391,120]
[356748826,1743094246070,-200.0,0.000391,120]
[356748827,1743094246079,-4000.0,0.00039275,5]
[356748828,1743094246089,-770.06730268,0.00039348,15]
[356748830,1743094246098,-736.0,0.00039726,60]
[356748831,1743094246107,-1749.27432311,0.000398,30]
[356748832,1743094246116,-92211.633072,0.000398,30]
[356748833,1743094246126,-197.31757807,0.000398,30]
[356748834,1743094246135,-770.06730268,0.00039866,15]
[356748835,1743094246145,-763.44291645,0.0003989,120]
[356748836,1743094246154,-74693.45028893,0.000399,30]
[356748837,1743094246191,-494.18,0.000399,30]
[356748848,1743094246790,-151.0,0.00032,7]
[356748849,1743094246799,-151.0,0.00032,7]
[356748850,1743094246809,-228.127395,0.00033,14]
[356748851,1743094246819,-364.426913,0.00034647,30]
[356748852,1743094246831,-232.811087,0.00034647,30]
[356748853,1743094246840,-139.40410423,0.000399,30]
[356748854,1743094246863,-25570.14422353,0.000399,30]
[356748872,1743095086038,4853.06320998,0.00025,120]
[356748987,1743095437744,-176.859247,0.00013699,2]
[356748988,1743095437757,-465.01346374,0.00025987,2]
[356748989,1743095437767,-167.84,0.000266,31]
[356748990,1743095437777,-301.0,0.0003,2]
[356748991,1743095437786,-167.84,0.000319,31]
[356748992,1743095437795,-167.84,0.000319,31]
[356748993,1743095437804,-400.0,0.00032111,2]
[356748994,1743095437813,-9032.42972983,0.00032112,2]
[356748995,1743095437837,-967.57027017,0.00032112,2]
[356748996,1743095437847,-203.15376715,0.000329,10]
[356748997,1743095437857,-203.15376697,0.00033176,11]
[356748998,1743095437866,-203.15376697,0.00033452,11]
[356748999,1743095437876,-203.15376697,0.00033728,11]
[356749000,1743095437885,-203.15376697,0.00034003,11]
[356749001,1743095437895,-203.15376697,0.00034279,11]
[356749002,1743095437904,-473.90279937,0.00034517,7]
[356749003,1743095437914,-24900.0,0.00034518,2]
[356749004,1743095437923,-203.15376697,0.00034555,12]
[356749005,1743095437932,-663.7673,0.00034647,30]
[356749006,1743095437941,-203.15376697,0.00034831,12]
[356749007,1743095437950,-500.0,0.00035067,5]
[356749008,1743095437959,-500.0,0.00035067,5]
[356749009,1743095437968,-500.0,0.00035067,5]
[356749010,1743095437977,-203.15376697,0.00035107,12]
[356749011,1743095437986,-500.0,0.000353,5]
[356749012,1743095437995,-500.0,0.000353,5]
[356749013,1743095438005,-500.0,0.000353,5]
[356749014,1743095438014,-203.15376697,0.00035383,12]
[356749015,1743095438024,-500.0,0.0003565,5]
[356749016,1743095438033,-203.15376697,0.00035659,12]
[356749017,1743095438043,-500.0,0.0003589,2]
[356749018,1743095438052,-203.15376697,0.00035934,12]
[356749019,1743095438061,-203.15376697,0.0003621,13]
[356749020,1743095438070,-203.15376697,0.00036486,13]
[356749021,1743095438080,-160.0,0.00036654,3]
[356749022,1743095438089,-203.15376697,0.00036762,13]
[356749023,1743095438099,-203.15376697,0.00037038,13]
[356749024,1743095438109,-167.84,0.000371,31]
[356749025,1743095438118,-167.84,0.000371,31]
[356749026,1743095438128,-1017.3561472,0.00037115,30]
[356749027,1743095438137,-203.15376697,0.00037314,13]
[356749028,1743095438146,-203.15376697,0.0003759,14]
[356749029,1743095438156,-160.9102123,0.00037829,4]
[356749030,1743095438165,-203.15376697,0.00037866,14]
[356749031,1743095438175,-203.15376697,0.00038141,14]
[356749032,1743095438184,-500.0,0.00038391,7]
[356749033,1743095438194,-999.999999,0.00039,14]
[356749034,1743095438203,-1963.51672091,0.00039,30]
[356749035,1743095438212,-500.0,0.00039194,7]
[356749036,1743095438222,-1203.69032338,0.00039773,2]
[356749037,1743095438232,-600.0,0.00039776,2]
[356749038,1743095438242,-585.55,0.0003979,3]
[356749039,1743095438251,-197.05863351,0.00039799,31]
[356749040,1743095438260,-389.81646089,0.00039799,31]
[356749041,1743095438269,-186285.84665992,0.000398,2]
[356749042,1743095438281,-74484.20613313,0.000398,2]
[356749043,1743095438292,-1328.97698081,0.000398,2]
[356749044,1743095438303,-884.25110755,0.000398,2]
[356749045,1743095438315,-464.08112466,0.000398,2]
[356749048,1743095440101,-552.41,0.00034304,30]
[356749049,1743095440111,-203.15376697,0.00038417,14]
[356749050,1743095440120,-203.15376697,0.00038693,14]
[356749051,1743095440130,-203.15376697,0.00038969,14]
[356749052,1743095440140,-203.15376697,0.00039245,15]
[356749053,1743095440150,-203.15376697,0.00039521,15]
[356749054,1743095440162,-203.15376697,0.00039797,15]
[356749055,1743095440172,-1524.97043557,0.000398,2]
[356749056,1743095440391,-1189.55020828,0.000398,2]
[356749057,1743095440404,-32247.48046563,0.000398,2]
[356749058,1743095440418,-4383.19997114,0.000398,2]
[356749059,1743095440449,-2719.98547863,0.000398,2]
[356749060,1743095440460,-403.67280999,0.000398,2]
[356749067,1743095443083,-401.32949645,0.000398,2]
[356749068,1743095443094,-9022.09073226,0.000398,2]
[356749069,1743095443107,-6660.35839598,0.000398,2]
[356749070,1743095443117,-5008.0,0.000398,30]
[356749071,1743095443127,-500.0,0.00039873,5]
[356749072,1743095443136,-502.31258614,0.00039873,5]
[356749074,1743095443146,-500.0,0.00039873,5]
[356749076,1743095443156,-500.0,0.00039873,5]
[356749078,1743095443166,-500.0,0.00039873,5]
[356749080,1743095443175,-500.0,0.00039873,5]
[356749083,1743095443185,-3374.48928243,0.000399,30]
[356749094,1743095445952,-154.85152286,0.00034455,2]
[356749095,1743095445962,-160.9102123,0.00038606,4]
[356749096,1743095445971,-8028.23826485,0.000399,30]
[356749097,1743095446005,-700.76901968,0.000399,30]
[356749126,1743096632125,-922.87999999,0.0001201,2]
[356749127,1743096632180,-3027.12000001,0.0001201,2]
[356749128,1743096632190,-175.325489,0.00013699,2]
[356749129,1743096632200,-216.68978927,0.000329,10]
[356749130,1743096632209,-216.68978921,0.00034043,11]
[356749131,1743096632219,-13659.3879029,0.00034493,2]
[356749132,1743096632229,-561.9,0.00034982,30]
[356749133,1743096632239,-216.68978921,0.00035186,12]
[356749134,1743096632248,-216.68978921,0.00036329,13]
[356749135,1743096632258,-216.68978921,0.00037471,13]
[356749136,1743096632267,-892.4290671,0.000378,107]
[356749137,1743096632277,-892.42906707,0.00038325,110]
[356749138,1743096632287,-154.85152284,0.00038559,2]
[356749139,1743096632297,-216.68978921,0.00038614,14]
[356749140,1743096632307,-586.97378309,0.00038659,7]
[356749141,1743096632317,-892.42906707,0.0003885,113]
[356749142,1743096632326,-154.85152284,0.00038894,2]
[356749143,1743096632336,-170.0,0.000389,120]
[356749144,1743096632345,-200.0,0.00039,120]
[356749145,1743096632355,-500.0,0.00039206,7]
[356749146,1743096632364,-154.85152284,0.0003923,2]
[356749147,1743096632374,-892.42906707,0.00039375,116]
[356749148,1743096632383,-154.85152284,0.00039565,2]
[356749149,1743096632393,-6052.63188254,0.0003959,30]
[356749150,1743096632402,-1203.69032338,0.000396,2]
[356749151,1743096632412,-500.0,0.00039673,5]
[356749152,1743096632421,-500.0,0.00039673,5]
[356749153,1743096632430,-500.0,0.00039673,5]
[356749154,1743096632440,-500.0,0.00039673,5]
[356749155,1743096632450,-272.87152263,0.00039699,15]
[356749157,1743096632460,-106288.45509811,0.000397,2]
[356749165,1743096638221,-468.2793,0.00034982,30]
[356749166,1743096638230,-156844.67742528,0.000397,2]
[356749167,1743096638242,-42523.42317332,0.000397,2]
[356749168,1743096638253,-2405.62336483,0.000397,2]
[356749169,1743096638265,-1245.49622947,0.000397,2]
[356749203,1743096643160,-436.8,0.00034982,30]
[356749205,1743096643170,-3901.6439522,0.000397,2]
[356749208,1743096643183,-6009.32275572,0.000397,2]
[356749210,1743096643194,-2781.35800107,0.000397,2]
[356749212,1743096643204,-1599.63078384,0.000397,15]
[356749214,1743096643214,-216.68978921,0.00039757,15]
[356749216,1743096643223,-324.48868043,0.000399,2]
[356749218,1743096643233,-32556.58922994,0.000399,30]
[356749221,1743096643256,-18285.53095492,0.000399,30]
[356749223,1743096643267,-1302.3054421,0.000399,30]
[356749226,1743096643279,-5060.0784995,0.000399,30]
[356749229,1743096646283,-1209.55457,0.00034982,30]
[356749230,1743096646293,-7169.74543,0.000399,30]
[356749274,1743097832383,-618.67261334,0.0001201,2]
[356749275,1743097832392,-174.302983,0.00013699,2]
[356749276,1743097832402,-346.0,0.00034781,2]
[356749277,1743097832415,-210.36541669,0.000349,12]
[356749278,1743097832424,-1017.0,0.00034982,30]
[356749279,1743097832434,-500.0,0.00035,120]
[356749280,1743097832443,-500.0,0.0003589,2]
[356749281,1743097832453,-178.48581343,0.000362,98]
[356749282,1743097832462,-178.48581341,0.000362,98]
[356749283,1743097832471,-1000.0,0.0003694,6]
[356749284,1743097832480,-154.85152284,0.00036977,2]
[356749285,1743097832491,-1000.0,0.00037077,6]
[356749286,1743097832501,-1000.0,0.00037214,6]
[356749287,1743097832510,-178.48581341,0.0003735,104]
[356749288,1743097832520,-1000.0,0.00037351,6]
[356749289,1743097832529,-210.36541668,0.000374,13]
[356749290,1743097832538,-1000.0,0.00037488,6]
[356749291,1743097832547,-500.0,0.00038426,7]
[356749292,1743097832557,-178.48581341,0.00038625,112]
[356749293,1743097832566,-160.0,0.00038733,3]
[356749294,1743097832576,-530.60329494,0.00039573,5]
[356749296,1743097832586,-500.0,0.00039573,5]
[356749298,1743097832595,-500.0,0.00039573,5]
[356749300,1743097832604,-500.0,0.00039573,5]
[356749302,1743097832613,-520.02410624,0.00039573,5]
[356749304,1743097832623,-500.0,0.00039573,5]
[356749306,1743097832632,-278.01943339,0.00039573,5]
[356749308,1743097832641,-500.0,0.00039573,5]
[356749310,1743097832651,-151.0,0.00039576,2]
[356749312,1743097832660,-1404.31902734,0.00039597,46]
[356749314,1743097832670,-191.01006584,0.00039599,15]
[356749316,1743097832679,-148163.1329946,0.000396,2]
[356749318,1743097832691,-58730.52464138,0.000396,2]
[356749321,1743097832710,-668.88980492,0.000396,2]
[356749328,1743097838250,-634.762,0.00034982,30]
[356749329,1743097838259,-146.51093045,0.000396,2]
[356749330,1743097838305,-268.735003,0.000396,2]
[356749331,1743097838317,-41310.7644819,0.000396,2]
[356749332,1743097838328,-20977.97573421,0.000396,2]
[356749333,1743097840472,-755.8345193,0.000396,2]
[356749334,1743097840483,-44147.50000001,0.000396,2]
[356749353,1743097843597,-603.57634,0.00034982,30]
[356749354,1743097843606,-6830.13189023,0.000396,2]
[356749355,1743097843616,-668.88980492,0.000397,15]
[356749356,1743097843626,-1990.79759381,0.000399,30]
[356749357,1743097843637,-500.0,0.000399,30]
[356749358,1743097843683,-7512.33841104,0.000399,30]
[356749360,1743097846303,-1503.14143,0.000399,30]
[356749361,1743097846316,-1327.63074095,0.000399,30]
[356749362,1743097846327,-1999.9223497,0.000399,30]
[356749363,1743097846412,-22635.94180402,0.000399,30]
[356749364,1743097846422,-2549.12487443,0.000399,120]
[356749365,1743097846432,-210.36541668,0.000399,15]
[356749366,1743097846441,-150.72,0.000399,30]
[356749367,1743097846451,-178.48581341,0.000399,119]
[356749368,1743097846462,-500.0,0.00039973,5]
[356749369,1743097846472,-607.27502439,0.00039973,5]
[356749370,1743097846482,-500.0,0.00039973,5]
[356749371,1743097846492,-500.0,0.00039973,5]
[356749372,1743097846503,-500.0,0.00039973,5]
[356749373,1743097846513,-15197.86400368,0.00039986,2]
[356749374,1743097846523,-495.86079999,0.00039999,31]
[356749375,1743097846533,-459.80347819,0.00039999,31]
[356749376,1743097846543,-490.61177807,0.00039999,31]
[356749377,1743097846553,-368.27159533,0.00039999,31]
[356749378,1743097846563,-445.69015362,0.00039999,31]
[356749379,1743097846572,-322.10343615,0.00039999,31]
[356749380,1743097846582,-391.11243662,0.00039999,31]
[356749381,1743097846591,-162.24434021,0.0004,2]
[356749382,1743097846601,-7750.0,0.0004,2]
[356749383,1743097846611,-99420.17367441,0.0004,5]
[356749450,1743099032656,-173.621313,0.00013699,2]
[356749452,1743099032665,-287.05224056,0.00034982,30]
[356749456,1743099032687,-165.18775944,0.00034982,30]
[356749458,1743099032696,-500.0,0.0003589,2]
[356749460,1743099032705,-206.26802758,0.000359,12]
[356749462,1743099032714,-206.26802753,0.00036471,13]
[356749464,1743099032723,-25324.13778041,0.0003664,120]
[356749466,1743099032732,-1000.0,0.0003694,6]
[356749468,1743099032741,-206.26802753,0.00037043,13]
[356749470,1743099032750,-1000.0,0.00037077,6]
[356749472,1743099032759,-1000.0,0.00037214,6]
[356749474,1743099032768,-3506.70262657,0.00037214,2]
[356749476,1743099032777,-206.26802753,0.00037614,14]
[356749478,1743099032787,-206.26802753,0.00038186,14]
[356749480,1743099032797,-500.0,0.00038645,7]
[356749482,1743099032806,-206.26802753,0.00038757,14]
[356749484,1743099032818,-834.95724862,0.00039165,2]
[356749486,1743099032827,-206.26802753,0.00039329,15]
[356749488,1743099032836,-372.38227502,0.00039473,5]
[356749490,1743099032846,-500.0,0.00039473,5]
[356749492,1743099032856,-500.0,0.00039473,5]
[356749494,1743099032865,-643.06,0.0003949,3]
[356749496,1743099032873,-52127.66030064,0.000395,2]
[356749501,1743099032911,-7083.8939776,0.000395,2]
[356749534,1743099038459,-400.0,0.00030226,2]
[356749535,1743099038468,-339.2892,0.00034986,30]
[356749536,1743099038478,-73061.55472444,0.000395,2]
[356749537,1743099038512,-189726.89099732,0.000395,2]
[356749538,1743099038522,-206.26802753,0.000399,15]
[356749539,1743099038532,-464.65544241,0.00039999,31]
[356749540,1743099038541,-162.24434021,0.0004,2]
[356749541,1743099038551,-41407.82684801,0.0004,15]
[356749542,1743099038562,-3316.79934542,0.0004,15]
[356749570,1743099043611,-254.22,0.00034986,30]
[356749571,1743099043621,-388.84,0.0004,15]
[356749572,1743099043667,-4624.9999995,0.0004,15]
[356749586,1743099046553,-150261.53380707,0.0004,15]
[356749587,1743099046562,-51985.19831008,0.0004,30]
[356749588,1743099240042,3159.0,0.00025,120]
[356749614,1743100232721,-173.166869,0.00013699,2]
[356749615,1743100232730,-2762.810827,0.00023,2]
[356749616,1743100232740,-400.0,0.00035199,2]
[356749617,1743100232750,-500.0,0.000352,120]
[356749618,1743100232759,-5000.0,0.000352,120]
[356749619,1743100232769,-3586.63396778,0.00035798,2]
[356749620,1743100232778,-500.0,0.0003589,2]
[356749621,1743100232788,-1000.0,0.00036951,6]
[356749622,1743100232798,-1000.0,0.00037088,6]
[356749623,1743100232809,-1000.0,0.00037225,6]
[356749624,1743100232818,-200.0,0.00037733,2]
[356749625,1743100232827,-165.304,0.00039373,54]
[356749626,1743100232836,-500.0,0.00039373,5]
[356749627,1743100232846,-500.0,0.00039373,5]
[356749628,1743100232856,-500.0,0.00039373,5]
[356749629,1743100232865,-500.0,0.00039373,5]
[356749630,1743100232875,-500.0,0.00039373,5]
[356749631,1743100232885,-500.0,0.00039373,5]
[356749632,1743100232895,-151.0,0.00039376,2]
[356749633,1743100232905,-600.0,0.00039376,2]
[356749634,1743100232915,-115186.82126146,0.000394,2]
[356749635,1743100232955,-10716.08610497,0.000394,2]
[356749636,1743100232966,-1000.03618259,0.000394,2]
[356749640,1743100238556,-125086.08749323,0.000394,2]
[356749647,1743100240935,-268.42864852,0.00039302,2]
[356749648,1743100240944,-18243.36540548,0.000394,2]
[356749649,1743100240957,-51767.60355227,0.000394,2]
[356749650,1743100240966,-1571.04444243,0.00039402,15]
[356749651,1743100240975,-151.0,0.000397,10]
[356749652,1743100240984,-1853.58305617,0.000398,120]
[356749653,1743100240994,-1570.8878235,0.000398,15]
[356749654,1743100241003,-151.0,0.000398,16]